lending/lending_fUSD_20250819
["ID","MTS","AMOUNT","RATE_DAILY","PERIOD"]
[380291045,1755637846929,-531.80719477,0.00014721,2]
[380291046,1755637846938,-500.0,0.00014747,2]
[380291047,1755637846949,-500.0,0.00014747,2]
[380291048,1755637846959,-500.0,0.00014747,2]
[380291049,1755637846969,-500.0,0.00014747,2]
[380291050,1755637846979,-555.81335514,0.00014747,2]
[380291051,1755637846988,-151.0,0.00014754,2]
[380291052,1755637846998,-169.06,0.00014763,2]
[380291053,1755637847008,-173.56,0.00014763,2]
[380291054,1755637847017,-500.0,0.00014782,2]
[380291055,1755637847027,-5888.0,0.00014782,2]
[380291056,1755637847036,-5888.0,0.00014784,2]
[380291057,1755637847046,-151.0,0.00014826,2]
[380291058,1755637847056,-5888.0,0.00014916,2]
[380291059,1755637847066,-238.0,0.0001492,2]
[380291060,1755637847075,-150.0,0.00014925,2]
[380291061,1755637847085,-150.0,0.00014925,2]
[380291062,1755637847094,-150.0,0.00014932,2]
[380291063,1755637847103,-2029.0,0.00014932,2]
[380291064,1755637847112,-198.869,0.00014932,2]
[380291065,1755637847122,-400.0,0.0001497,2]
[380291066,1755637847131,-150.0,0.00014976,2]
[380291067,1755637847140,-150.0,0.00014976,2]
[380291068,1755637847150,-150.0,0.00014976,2]
[380291069,1755637847160,-500.0,0.00014976,2]
[380291070,1755637847169,-150.0,0.00014976,2]
[380291071,1755637847178,-150.0,0.00014976,2]
[380291072,1755637847187,-150.0,0.00014976,2]
[380291073,1755637847196,-150.0,0.00014976,2]
[380291074,1755637847206,-150.0,0.00014976,2]
[380291075,1755637847215,-150.0,0.00014976,2]
[380291076,1755637847225,-500.0,0.00014976,2]
[380291077,1755637847235,-500.0,0.00014976,2]
[380291078,1755637847244,-500.0,0.00014976,2]
[380291079,1755637847254,-500.0,0.00014976,2]
[380291080,1755637847263,-500.0,0.00014976,2]
[380291081,1755637847273,-150.0,0.00014976,2]
[380291082,1755637847283,-150.0,0.00014976,2]
[380291083,1755637847292,-150.0,0.00014976,2]
[380291084,1755637847301,-2146.06300566,0.0001498,30]
[380291085,1755637847311,-179.49,0.00014982,2]
[380291086,1755637847320,-1107.17,0.00014984,2]
[380291087,1755637847330,-211.74705479,0.0001499,2]
[380291088,1755637847340,-5888.0,0.00014993,2]
[380291089,1755637847350,-151.0,0.00014993,2]
[380291090,1755637847359,-151.0,0.00014993,2]
[380291091,1755637847368,-151.0,0.00014993,2]
[380291092,1755637847378,-151.0,0.00014993,2]
[380291093,1755637847388,-151.0,0.00014993,2]
[380291094,1755637847399,-151.0,0.00014993,2]
[380291095,1755637847408,-151.0,0.00014993,2]
[380291096,1755637847418,-5079.78,0.00015,3]
[380291097,1755637847428,-250.0,0.00015,2]
[380291098,1755637847438,-500.0,0.00015,2]
[380291099,1755637847447,-173.12209304,0.00015,2]
[380291100,1755637847457,-446.08304305,0.00015,2]
[380291101,1755637847468,-500.0,0.00015,2]
[380291102,1755637847477,-500.0,0.00015,2]
[380291103,1755637847487,-293.80917281,0.00015,2]
[380291104,1755637847496,-5888.0,0.00015008,2]
[380291105,1755637847506,-5526.4,0.00015068,2]
[380291106,1755637847516,-300.0,0.00015068,2]
[380291107,1755637847525,-150.0,0.00015073,2]
[380291108,1755637847535,-135312.8946735,0.00015074,2]
[380291109,1755637847545,-151.0,0.00015074,2]
[380291110,1755637847555,-6714.570061,0.00015074,2]
[380291111,1755637847705,-6714.570061,0.00015074,2]
[380291112,1755637847715,-275.829102,0.00015074,2]
[380291113,1755637847733,-151.0,0.00015074,2]
[380291114,1755637847745,-6714.570061,0.00015074,2]
[380291115,1755637847754,-377.91897,0.00015074,2]
[380291116,1755637847764,-151.0,0.00015074,2]
[380291117,1755637847774,-275.829102,0.00015074,2]
[380291118,1755637847784,-151.0,0.00015074,2]
[380291119,1755637847794,-377.91897,0.00015074,2]
[380291120,1755637847804,-151.0,0.00015074,2]
[380291121,1755637847814,-151.0,0.00015074,2]
[380291122,1755637847827,-6714.570061,0.00015074,2]
[380291123,1755637847836,-275.829102,0.00015074,2]
[380291124,1755637847845,-377.91897,0.00015074,2]
[380291125,1755637847854,-151.0,0.00015074,2]
[380291126,1755637847866,-275.829102,0.00015074,2]
[380291127,1755637847875,-151.0,0.00015074,2]
[380291128,1755637847885,-377.91897,0.00015074,2]
[380291129,1755637847895,-151.0,0.00015074,2]
[380291130,1755637847905,-151.0,0.00015074,2]
[380291131,1755637847914,-151.0,0.00015074,2]
[380291132,1755637847923,-783.194687,0.00015074,2]
[380291133,1755637847932,-151.0,0.00015074,2]
[380291134,1755637847942,-783.194687,0.00015074,2]
[380291135,1755637847951,-151.0,0.00015074,2]
[380291136,1755637847960,-783.194687,0.00015074,2]
[380291137,1755637847969,-783.194687,0.00015074,2]
[380291138,1755637847978,-151.0,0.00015074,2]
[380291139,1755637847988,-151.0,0.00015074,2]
[380291140,1755637847997,-151.0,0.00015074,2]
[380291141,1755637848006,-151.0,0.00015074,2]
[380291142,1755637848016,-419.804674,0.00015074,2]
[380291143,1755637848025,-419.804674,0.00015074,2]
[380291144,1755637848034,-419.804674,0.00015074,2]
[380291145,1755637848044,-151.0,0.00015074,2]
[380291146,1755637848054,-419.804674,0.00015074,2]
[380291147,1755637848063,-4463.62087,0.00015074,2]
[380291148,1755637848072,-151.0,0.00015074,2]
[380291149,1755637848081,-151.0,0.00015074,2]
[380291150,1755637848091,-4463.62087,0.00015074,2]
[380291151,1755637848100,-309.369611,0.00015074,2]
[380291152,1755637848110,-4463.62087,0.00015074,2]
[380291153,1755637848119,-325.171712,0.00015074,2]
[380291154,1755637848129,-309.369611,0.00015074,2]
[380291155,1755637848139,-151.0,0.00015074,2]
[380291156,1755637848149,-4463.62087,0.00015074,2]
[380291157,1755637848159,-951.594588,0.00015074,2]
[380291158,1755637848169,-325.171712,0.00015074,2]
[380291159,1755637848179,-151.0,0.00015074,2]
[380291160,1755637848188,-951.594588,0.00015074,2]
[380291161,1755637848198,-325.171712,0.00015074,2]
[380291162,1755637848207,-951.594588,0.00015074,2]
[380291163,1755637848216,-325.171712,0.00015074,2]
[380291164,1755637848226,-951.594588,0.00015074,2]
[380291165,1755637848235,-309.369611,0.00015074,2]
[380291166,1755637848245,-151.0,0.00015074,2]
[380291167,1755637848254,-175.315103,0.00015074,2]
[380291168,1755637848264,-309.369611,0.00015074,2]
[380291169,1755637848275,-151.0,0.00015074,2]
[380291170,1755637848284,-175.315103,0.00015074,2]
[380291171,1755637848295,-151.0,0.00015074,2]
[380291172,1755637848305,-151.0,0.00015074,2]
[380291173,1755637848314,-151.0,0.00015074,2]
[380291174,1755637848324,-151.0,0.00015074,2]
[380291175,1755637848333,-175.315103,0.00015074,2]
[380291176,1755637848342,-919.606085,0.00015074,2]
[380291177,1755637848352,-175.315103,0.00015074,2]
[380291178,1755637848363,-919.606085,0.00015074,2]
[380291179,1755637848372,-151.0,0.00015074,2]
[380291180,1755637848382,-151.0,0.00015074,2]
[380291181,1755637848392,-919.606085,0.00015074,2]
[380291182,1755637848401,-249.40441,0.00015074,2]
[380291183,1755637848411,-151.0,0.00015074,2]
[380291184,1755637848420,-919.606085,0.00015074,2]
[380291185,1755637848430,-151.0,0.00015074,2]
[380291186,1755637848439,-168.75726635,0.00015103,10]
[380291187,1755637848450,-5888.0,0.00015106,2]
[380291188,1755637848459,-151.0,0.00015108,2]
[380291189,1755637848468,-151.0,0.00015108,2]
[380291190,1755637848477,-151.0,0.00015108,2]
[380291191,1755637848487,-151.0,0.00015108,2]
[380291192,1755637848497,-151.0,0.00015108,2]
[380291193,1755637848507,-303.536632,0.00015108,2]
[380291194,1755637848517,-151.0,0.00015108,2]
[380291195,1755637848526,-303.536632,0.00015108,2]
[380291196,1755637848536,-303.536632,0.00015108,2]
[380291197,1755637848546,-303.536632,0.00015108,2]
[380291198,1755637848556,-151.0,0.00015108,2]
[380291199,1755637848566,-175.15,0.00015115,2]
[380291200,1755637848576,-300.0,0.00015122,2]
[380291201,1755637848586,-1000.0,0.00015174,2]
[380291202,1755637848597,-1000.0,0.00015174,2]
[380291203,1755637848607,-1000.0,0.00015174,2]
[380291204,1755637848617,-1000.0,0.00015174,2]
[380291205,1755637848626,-252.75694248,0.00015174,2]
[380291206,1755637848636,-1000.0,0.00015174,2]
[380291207,1755637848645,-1000.0,0.00015174,2]
[380291208,1755637848654,-1000.0,0.00015174,2]
[380291209,1755637848663,-60000.0,0.000152,2]
[380291210,1755637848673,-5888.0,0.00015208,2]
[380291211,1755637848682,-150.0,0.0001525,2]
[380291212,1755637848691,-200.0,0.0001525,2]
[380291213,1755637848700,-150.0,0.0001525,2]
[380291214,1755637848710,-500.0,0.0001525,2]
[380291215,1755637848719,-150.0,0.0001525,2]
[380291216,1755637848730,-150.0,0.0001525,2]
[380291217,1755637848739,-200.0,0.0001525,2]
[380291218,1755637848749,-207.91791004,0.0001525,2]
[380291219,1755637848758,-500.0,0.0001525,2]
[380291220,1755637848767,-500.0,0.0001525,2]
[380291221,1755637848777,-500.0,0.0001525,2]
[380291222,1755637848786,-500.0,0.0001525,2]
[380291223,1755637848796,-500.0,0.0001525,2]
[380291224,1755637848806,-150.0,0.0001525,2]
[380291225,1755637848817,-151.0,0.0001525,2]
[380291226,1755637848828,-151.0,0.0001525,2]
[380291227,1755637848837,-151.0,0.0001525,2]
[380291228,1755637848847,-151.0,0.0001525,2]
[380291229,1755637848857,-151.0,0.0001525,2]
[380291230,1755637848866,-151.0,0.0001525,2]
[380291231,1755637848876,-151.0,0.0001525,2]
[380291232,1755637848885,-280.722744,0.0001525,2]
[380291233,1755637848896,-230.750282,0.0001525,2]
[380291234,1755637848906,-230.750282,0.0001525,2]
[380291235,1755637848915,-230.750282,0.0001525,2]
[380291236,1755637848925,-230.750282,0.0001525,2]
[380291237,1755637848935,-151.0,0.0001525,2]
[380291238,1755637848945,-151.0,0.0001525,2]
[380291239,1755637848955,-151.0,0.0001525,2]
[380291240,1755637848964,-151.0,0.0001525,2]
[380291241,1755637848974,-151.0,0.0001525,2]
[380291242,1755637848984,-151.0,0.0001525,2]
[380291243,1755637848994,-617.46186,0.0001525,2]
[380291244,1755637849003,-617.46186,0.0001525,2]
[380291245,1755637849013,-617.46186,0.0001525,2]
[380291246,1755637849023,-617.46186,0.0001525,2]
[380291247,1755637849033,-399.205785,0.0001525,2]
[380291248,1755637849043,-399.205785,0.0001525,2]
[380291249,1755637849053,-399.205785,0.0001525,2]
[380291250,1755637849063,-399.205785,0.0001525,2]
[380291251,1755637849073,-5888.0,0.00015262,2]
[380291252,1755637849083,-1000.0,0.00015265,2]
[380291253,1755637849094,-160.02529342,0.00015265,2]
[380291254,1755637849104,-1000.0,0.00015265,2]
[380291255,1755637849114,-1000.0,0.00015265,2]
[380291256,1755637849124,-1000.0,0.00015265,2]
[380291257,1755637849134,-1500.0,0.00015268,2]
[380291258,1755637849144,-1139.30070916,0.00015268,2]
[380291259,1755637849154,-1500.0,0.00015268,2]
[380291260,1755637849165,-1602.72994832,0.00015268,2]
[380291261,1755637849175,-1500.0,0.00015268,2]
[380291262,1755637849186,-1500.0,0.00015268,2]
[380291263,1755637849196,-1500.0,0.00015268,2]
[380291264,1755637849206,-1500.0,0.00015268,2]
[380291265,1755637849216,-1500.0,0.00015268,2]
[380291266,1755637849227,-1500.0,0.00015268,2]
[380291267,1755637849238,-1500.0,0.00015268,2]
[380291268,1755637849247,-589.83669643,0.00015268,2]
[380291269,1755637849258,-1500.0,0.00015268,2]
[380291270,1755637849268,-1500.0,0.00015268,2]
[380291271,1755637849278,-160.12768811,0.00015295,2]
[380291272,1755637849288,-1000.22048561,0.00015295,2]
[380291273,1755637849298,-1139.65278803,0.00015295,2]
[380291274,1755637849308,-1000.0,0.00015295,2]
[380291275,1755637849318,-70000.0,0.000153,2]
[380291276,1755637849328,-1517.64,0.000153,2]
[380291277,1755637849338,-193.223135,0.000153,2]
[380291278,1755637849347,-336.296648,0.000153,2]
[380291279,1755637849357,-151.0,0.000153,2]
[380291280,1755637849367,-193.223135,0.000153,2]
[380291281,1755637849376,-151.501046,0.000153,2]
[380291282,1755637849386,-336.296648,0.000153,2]
[380291283,1755637849396,-193.223135,0.000153,2]
[380291284,1755637849406,-336.296648,0.000153,2]
[380291285,1755637849415,-193.223135,0.000153,2]
[380291286,1755637849425,-336.296648,0.000153,2]
[380291287,1755637849435,-151.0,0.000153,2]
[380291288,1755637849445,-151.0,0.000153,2]
[380291289,1755637849454,-151.0,0.000153,2]
[380291290,1755637849464,-151.0,0.000153,2]
[380291291,1755637849474,-151.0,0.000153,2]
[380291292,1755637849484,-151.0,0.000153,2]
[380291293,1755637849493,-151.0,0.000153,2]
[380291294,1755637849503,-267.226846,0.000153,2]
[380291295,1755637849512,-267.226846,0.000153,2]
[380291296,1755637849522,-267.226846,0.000153,2]
[380291297,1755637849531,-151.0,0.000153,2]
[380291298,1755637849541,-978.977009,0.000153,2]
[380291299,1755637849551,-267.226846,0.000153,2]
[380291300,1755637849560,-506.799535,0.000153,2]
[380291301,1755637849569,-151.0,0.000153,2]
[380291302,1755637849579,-151.0,0.000153,2]
[380291303,1755637849589,-506.799535,0.000153,2]
[380291304,1755637849599,-978.977009,0.000153,2]
[380291305,1755637849609,-151.0,0.000153,2]
[380291306,1755637849619,-506.799535,0.000153,2]
[380291307,1755637849628,-151.0,0.000153,2]
[380291308,1755637849638,-978.977009,0.000153,2]
[380291309,1755637849648,-506.799535,0.000153,2]
[380291310,1755637849657,-151.0,0.000153,2]
[380291311,1755637849667,-978.977009,0.000153,2]
[380291312,1755637849677,-151.0,0.000153,2]
[380291313,1755637849687,-151.0,0.000153,2]
[380291314,1755637849696,-151.0,0.000153,2]
[380291315,1755637849706,-151.0,0.000153,2]
[380291316,1755637849716,-151.0,0.000153,2]
[380291317,1755637849725,-151.0,0.000153,2]
[380291318,1755637849735,-151.0,0.000153,2]
[380291319,1755637849745,-502.149321,0.000153,2]
[380291320,1755637849754,-151.0,0.000153,2]
[380291321,1755637849764,-391.490507,0.000153,2]
[380291322,1755637849773,-391.490507,0.000153,2]
[380291323,1755637849783,-391.490507,0.000153,2]
[380291324,1755637849793,-435.296319,0.000153,2]
[380291325,1755637849803,-151.0,0.000153,2]
[380291326,1755637849814,-502.149321,0.000153,2]
[380291327,1755637849826,-391.490507,0.000153,2]
[380291328,1755637849836,-435.296319,0.000153,2]
[380291329,1755637849846,-151.0,0.000153,2]
[380291330,1755637849856,-435.296319,0.000153,2]
[380291331,1755637849866,-435.296319,0.000153,2]
[380291332,1755637849876,-502.149321,0.000153,2]
[380291333,1755637849887,-502.149321,0.000153,2]
[380291334,1755637849898,-151.0,0.000153,2]
[380291335,1755637849908,-151.0,0.000153,2]
[380291336,1755637849917,-151.0,0.000153,2]
[380291337,1755637849927,-151.0,0.000153,2]
[380291338,1755637849937,-190.20556,0.000153,2]
[380291339,1755637849946,-151.0,0.000153,2]
[380291340,1755637849956,-770.7008467,0.0001533,2]
[380291341,1755637849965,-312.54651576,0.00015375,2]
[380291342,1755637849975,-5888.0,0.00015378,2]
[380291343,1755637849985,-497.68532399,0.000154,2]
[380291344,1755637849995,-1100.0,0.000154,4]
[380291345,1755637850005,-16364.56245576,0.000154,2]
[380291346,1755637850015,-5888.0,0.00015424,2]
[380291347,1755637850025,-5888.0,0.00015433,2]
[380291348,1755637850034,-5888.0,0.00015451,2]
[380291349,1755637850044,-151.0,0.00015452,2]
[380291350,1755637850054,-222.600944,0.00015452,2]
[380291351,1755637850063,-151.0,0.00015452,2]
[380291352,1755637850073,-151.0,0.00015452,2]
[380291353,1755637850082,-151.0,0.00015452,2]
[380291354,1755637850092,-151.0,0.00015452,2]
[380291355,1755637850101,-151.0,0.00015452,2]
[380291356,1755637850111,-151.0,0.00015452,2]
[380291357,1755637850120,-151.0,0.00015452,2]
[380291358,1755637850130,-151.0,0.00015452,2]
[380291359,1755637850139,-151.0,0.00015452,2]
[380291360,1755637850149,-151.0,0.00015452,2]
[380291361,1755637850158,-288.189065,0.00015452,2]
[380291362,1755637850168,-151.0,0.00015452,2]
[380291363,1755637850177,-5888.0,0.00015456,2]
[380291364,1755637850187,-7500.0,0.000155,3]
[380291365,1755637850197,-150.0,0.00015524,2]
[380291366,1755637850206,-500.0,0.00015524,2]
[380291367,1755637850216,-200.0,0.00015524,2]
[380291368,1755637850225,-150.0,0.00015524,2]
[380291369,1755637850234,-500.0,0.00015524,2]
[380291370,1755637850244,-500.0,0.00015524,2]
[380291371,1755637850254,-500.0,0.00015524,2]
[380291372,1755637850264,-500.0,0.00015524,2]
[380291373,1755637850274,-500.0,0.00015524,2]
[380291374,1755637850285,-200.0,0.00015524,2]
[380291375,1755637850297,-1000.0,0.00015548,2]
[380291376,1755637850307,-1000.0,0.00015548,2]
[380291377,1755637850319,-1000.0,0.00015548,2]
[380291378,1755637850329,-150.0,0.00015599,2]
[380291379,1755637850339,-50000.0,0.000156,3]
[380291380,1755637850349,-292678.81,0.000156,2]
[380291381,1755637850359,-15829.76,0.000156,2]
[380291382,1755637850370,-166.045353,0.000156,2]
[380291383,1755637850379,-151.0,0.000156,2]
[380291384,1755637850388,-151.0,0.000156,2]
[380291385,1755637850398,-151.0,0.000156,2]
[380291386,1755637850407,-151.0,0.000156,2]
[380291387,1755637850418,-634.509558,0.000156,2]
[380291388,1755637850427,-634.509558,0.000156,2]
[380291389,1755637850437,-405.169939,0.000156,2]
[380291390,1755637850447,-225.007726,0.000156,2]
[380291391,1755637850457,-634.509558,0.000156,2]
[380291392,1755637850467,-153.981414,0.000156,2]
[380291393,1755637850476,-151.0,0.000156,2]
[380291394,1755637850486,-405.169939,0.000156,2]
[380291395,1755637850496,-225.007726,0.000156,2]
[380291396,1755637850506,-634.509558,0.000156,2]
[380291397,1755637850516,-153.03946,0.000156,2]
[380291398,1755637850525,-405.169939,0.000156,2]
[380291399,1755637850535,-225.007726,0.000156,2]
[380291400,1755637850545,-153.03946,0.000156,2]
[380291401,1755637850554,-405.169939,0.000156,2]
[380291402,1755637850564,-225.007726,0.000156,2]
[380291403,1755637850574,-151.0,0.000156,2]
[380291404,1755637850583,-153.03946,0.000156,2]
[380291405,1755637850593,-151.0,0.000156,2]
[380291406,1755637850603,-153.03946,0.000156,2]
[380291407,1755637850613,-151.0,0.000156,2]
[380291408,1755637850623,-151.0,0.000156,2]
[380291409,1755637850633,-228.410348,0.000156,2]
[380291410,1755637850642,-482.568323,0.000156,2]
[380291411,1755637850652,-482.568323,0.000156,2]
[380291412,1755637850662,-482.568323,0.000156,2]
[380291413,1755637850672,-482.568323,0.000156,2]
[380291414,1755637850683,-237.222719,0.000156,2]
[380291415,1755637850694,-237.222719,0.000156,2]
[380291416,1755637850705,-151.0,0.000156,2]
[380291417,1755637850716,-237.222719,0.000156,2]
[380291418,1755637850726,-151.0,0.000156,2]
[380291419,1755637850737,-237.222719,0.000156,2]
[380291420,1755637850747,-151.0,0.000156,2]
[380291421,1755637850758,-151.0,0.000156,2]
[380291422,1755637850768,-151.0,0.000156,2]
[380291423,1755637850778,-5888.0,0.00015601,2]
[380291424,1755637850788,-5888.0,0.0001561,2]
[380291425,1755637850799,-5888.0,0.00015619,2]
[380291426,1755637850809,-5888.0,0.00015648,2]
[380291427,1755637850823,-5888.0,0.0001566,2]
[380291428,1755637850833,-5888.0,0.00015664,2]
[380291429,1755637850843,-157.0,0.00015699,3]
[380291430,1755637850854,-1500.0,0.00015722,2]
[380291431,1755637850866,-1500.0,0.00015722,2]
[380291432,1755637850876,-1500.0,0.00015722,2]
[380291433,1755637850888,-1500.0,0.00015722,2]
[380291434,1755637850899,-1176.8282075,0.00015722,2]
[380291435,1755637850909,-1500.0,0.00015722,2]
[380291436,1755637850919,-966.78455085,0.00015722,2]
[380291437,1755637850930,-5526.4,0.00015753,2]
[380291438,1755637850940,-5888.0,0.00015774,2]
[380291439,1755637850950,-150.0,0.00015798,2]
[380291440,1755637850961,-500.0,0.00015798,2]
[380291441,1755637850972,-200.0,0.00015798,2]
[380291442,1755637850983,-431.57015915,0.00015798,2]
[380291443,1755637850993,-601.57408413,0.00015798,2]
[380291444,1755637851004,-439.0,0.00015798,2]
[380291445,1755637851014,-500.0,0.00015798,2]
[380291446,1755637851024,-500.0,0.00015798,2]
[380291447,1755637851034,-7500.0,0.000158,3]
[380291448,1755637851044,-500.0,0.00015801,2]
[380291449,1755637851055,-1000.0,0.00015801,2]
[380291450,1755637851066,-168.75726635,0.00015806,12]
[380291451,1755637851076,-1500.0,0.00015813,2]
[380291452,1755637851086,-1500.0,0.00015813,2]
[380291453,1755637851097,-1500.0,0.00015813,2]
[380291454,1755637851108,-1500.0,0.00015813,2]
[380291455,1755637851119,-2000.0,0.00015816,2]
[380291456,1755637851135,-2000.0,0.00015816,2]
[380291457,1755637851146,-2000.0,0.00015816,2]
[380291458,1755637851158,-2000.0,0.00015816,2]
[380291459,1755637851168,-2000.0,0.00015816,2]
[380291460,1755637851179,-1414.52775507,0.00015816,2]
[380291461,1755637851191,-2147.47839581,0.00015816,2]
[380291462,1755637851202,-2000.0,0.00015816,2]
[380291463,1755637851213,-2000.0,0.00015816,2]
[380291464,1755637851223,-2000.0,0.00015816,2]
[380291465,1755637851234,-2000.0,0.00015816,2]
[380291466,1755637851244,-5888.0,0.00015842,2]
[380291467,1755637851255,-1500.0,0.00015843,2]
[380291468,1755637851267,-160.0,0.00015844,2]
[380291469,1755637851278,-298.26089446,0.00015844,2]
[380291470,1755637851288,-322.6107,0.00015844,2]
[380291471,1755637851301,-3283.27,0.0001589,2]
[380291472,1755637851321,-5888.0,0.00015902,2]
[380291473,1755637851331,-480.86303622,0.00016,2]
[380291474,1755637851342,-1653.15267911,0.00016,2]
[380291475,1755637851352,-500.75490201,0.00016,2]
[380291476,1755637851362,-3000.0,0.00016,2]
[380291477,1755637851372,-6317.82045744,0.00016,3]
[380291478,1755637851383,-164.09387419,0.00016,5]
[380291479,1755637851393,-1000.0,0.00016,2]
[380291480,1755637851403,-163.31069319,0.00016,4]
[380291481,1755637851414,-97996.74,0.00016,15]
[380291482,1755637851424,-2144.79428137,0.00016,2]
[380291483,1755637851434,-151.0,0.00016,2]
[380291484,1755637851445,-151.0,0.00016,2]
[380291485,1755637851454,-201.642082,0.00016,2]
[380291486,1755637851465,-210.90231,0.00016,2]
[380291487,1755637851475,-151.0,0.00016,2]
[380291488,1755637851487,-1487.597972,0.00016,2]
[380291489,1755637851497,-151.0,0.00016,2]
[380291490,1755637851507,-1487.597972,0.00016,2]
[380291491,1755637851521,-151.0,0.00016,2]
[380291492,1755637851531,-1487.597972,0.00016,2]
[380291493,1755637851542,-189.365611,0.00016,2]
[380291494,1755637851553,-1487.597972,0.00016,2]
[380291495,1755637851563,-151.0,0.00016,2]
[380291496,1755637851573,-219.00999,0.00016,2]
[380291497,1755637851583,-219.00999,0.00016,2]
[380291498,1755637851593,-151.0,0.00016,2]
[380291499,1755637851604,-306.240082,0.00016,2]
[380291500,1755637851614,-151.0,0.00016,2]
[380291501,1755637851624,-306.240082,0.00016,2]
[380291502,1755637851634,-151.0,0.00016,2]
[380291503,1755637851644,-151.0,0.00016,2]
[380291504,1755637851654,-219.00999,0.00016,2]
[380291505,1755637851665,-151.0,0.00016,2]
[380291506,1755637851675,-306.240082,0.00016,2]
[380291507,1755637851685,-151.0,0.00016,2]
[380291508,1755637851695,-219.00999,0.00016,2]
[380291509,1755637851705,-151.0,0.00016,2]
[380291510,1755637851715,-306.240082,0.00016,2]
[380291511,1755637851725,-211.124619,0.00016,2]
[380291512,1755637851735,-151.0,0.00016,2]
[380291513,1755637851745,-151.0,0.00016,2]
[380291514,1755637851756,-151.0,0.00016,2]
[380291515,1755637851766,-151.0,0.00016,2]
[380291516,1755637851776,-151.903474,0.00016,2]
[380291517,1755637851787,-212.02104404,0.00016,3]
[380291518,1755637851797,-385.046395,0.00016,2]
[380291519,1755637851807,-458.43483364,0.00016,3]
[380291520,1755637851821,-5888.0,0.00016024,2]
[380291521,1755637851831,-197.63449272,0.00016072,2]
[380291522,1755637851842,-500.0,0.00016072,2]
[380291523,1755637851853,-500.0,0.00016072,2]
[380291524,1755637851866,-500.0,0.00016072,2]
[380291525,1755637851876,-390.19163545,0.00016096,2]
[380291526,1755637851886,-718.98815847,0.00016096,2]
[380291527,1755637851898,-1500.0,0.00016096,2]
[380291528,1755637851910,-233.0,0.000161,2]
[380291529,1755637851920,-9999.99,0.00016116,2]
[380291530,1755637851931,-4000.0,0.00016148,3]
[380291531,1755637851942,-212.02104404,0.000162,3]
[380291532,1755637851952,-458.43483364,0.000162,3]
[380291533,1755637851963,-2000.0,0.0001627,2]
[380291534,1755637851973,-1714.68970863,0.0001627,2]
[380291535,1755637851984,-1694.4841589,0.0001627,2]
[380291536,1755637851995,-2000.0,0.0001627,2]
[380291537,1755637852006,-2000.0,0.0001627,2]
[380291538,1755637852016,-179.49,0.00016281,2]
[380291539,1755637852026,-200.0,0.0001634,2]
[380291540,1755637852036,-500.0,0.00016346,2]
[380291541,1755637852046,-500.0,0.00016346,2]
[380291542,1755637852056,-500.0,0.00016346,2]
[380291543,1755637852065,-2000.0,0.00016361,2]
[380291544,1755637852074,-468.46484736,0.00016361,2]